bitfinex/quotes_SOLUSD_20240813
["timestamp","ask_amount","ask_price","bid_price","bid_amount"]
[1723557078143,950.69828533,147.55,147.54,85.50196]
[1723557079037,950.69828533,147.55,147.54,105.50196]
[1723557079413,950.69828533,147.55,147.54,85.50196]
[1723557079614,950.69828533,147.55,147.54,105.50196]
[1723557079817,950.69828533,147.55,147.54,65.50196]
[1723557080119,950.69828533,147.55,147.54,20.0]
[1723557080330,950.69828533,147.55,147.52,46.4]
[1723557080539,950.69828533,147.55,147.49,55.88930031]
[1723557080540,950.69828533,147.55,147.49,66.4]
[1723557080713,950.69828533,147.55,147.51,30.0]
[1723557080913,950.69828533,147.55,147.49,46.4]
[1723557081324,950.69828533,147.55,147.49,55.40061578]
[1723557081532,950.69828533,147.55,147.49,46.4]
[1723557081747,950.69828533,147.55,147.5,30.0]
[1723557081943,950.69828533,147.55,147.49,55.40061578]
[1723557082116,963.86318533,147.55,147.46,46.4]
[1723557082441,950.69828533,147.55,147.49,46.4]
[1723557082825,950.69828533,147.55,147.49,75.40061578]
[1723557083142,950.69828533,147.55,147.49,66.4]
[1723557083331,950.69828533,147.55,147.5,29.00061578]
[1723557083530,950.69828533,147.55,147.52,46.4]
[1723557083827,950.69828533,147.55,147.53,85.25098]
[1723557084040,950.69828533,147.55,147.54,0.12549]
[1723557085952,950.69828533,147.55,147.53,20.0]
[1723557086537,948.09926242,147.55,147.53,20.0]
[1723557086747,948.09926242,147.55,147.54,20.0]
[1723557086926,948.09926242,147.55,147.54,0.12549]
[1723557087127,948.09926242,147.55,147.54,45.50196]
[1723557087342,948.09926242,147.55,147.54,65.50196]
[1723557088431,933.13926242,147.55,147.54,65.37647]
[1723557088834,874.05823811,147.55,147.54,65.37647]
[1723557089025,645.0645087,147.55,147.54,124.37708578]
[1723557089222,645.0645087,147.55,147.54,50.37647]
[1723557089423,645.0645087,147.55,147.54,70.37647]
[1723557090026,645.0645087,147.55,147.54,40.0]
[1723557090227,645.0645087,147.55,147.54,20.0]
[1723557090457,645.0645087,147.55,147.53,20.0]
[1723557090624,645.0645087,147.55,147.53,46.4]
[1723557091049,643.8845087,147.55,147.53,46.4]
[1723557091258,643.8845087,147.55,147.51,20.0]
[1723557091757,643.8845087,147.55,147.51,29.00061578]
[1723557091944,643.8845087,147.55,147.51,67.60061578]
[1723557092146,643.8845087,147.55,147.51,47.60061578]
[1723557092455,643.8845087,147.55,147.52,20.0]
[1723557092954,643.8845087,147.55,147.51,67.60061578]
[1723557093545,643.8845087,147.55,147.52,45.50196]
[1723557094239,643.8845087,147.55,147.54,0.12549]
[1723557094441,643.8845087,147.55,147.54,45.50196]
[1723557094763,643.8845087,147.55,147.54,65.50196]
[1723557095454,641.2845087,147.55,147.54,105.50196]
[1723557096037,641.2845087,147.55,147.54,85.50196]
[1723557096243,641.2845087,147.55,147.54,65.50196]
[1723557097444,641.2845087,147.55,147.54,20.0]
[1723557097840,641.2845087,147.55,147.54,40.0]
[1723557098472,641.2845087,147.55,147.54,20.0]
[1723557098657,641.2845087,147.55,147.52,20.0]
[1723557098960,641.2845087,147.55,147.53,65.50196]
[1723557099167,641.2845087,147.55,147.54,20.12549]
[1723557099337,641.2845087,147.55,147.54,20.37647]
[1723557099952,641.2845087,147.55,147.54,20.0]
[1723557100160,641.2845087,147.55,147.46,56.5329941]
[1723557100360,43.3638,147.54,147.47,9.00061578]
[1723557100561,43.3638,147.54,147.48,27.08008135]
[1723557100765,30.1198,147.54,147.49,9.00061578]
[1723557100957,641.2845087,147.55,147.51,38.6]
[1723557101144,641.2845087,147.55,147.52,29.00061578]
[1723557101458,641.2845087,147.55,147.52,49.00061578]
[1723557101658,641.2845087,147.55,147.53,45.50196]
[1723557101872,640.2697267,147.55,147.54,45.12549]
[1723557102049,640.2697267,147.55,147.54,45.50196]
[1723557102250,640.2697267,147.55,147.54,65.50196]
[1723557102460,640.2697267,147.55,147.54,85.50196]
[1723557102656,640.2697267,147.55,147.54,65.50196]
[1723557103158,640.2697267,147.55,147.37,101.5262892]
[1723557103159,640.2697267,147.55,147.5,20.0]
[1723557103841,640.2697267,147.55,147.49,20.0]
[1723557104261,640.2697267,147.55,147.5,20.0]
[1723557104466,640.2697267,147.55,147.52,0.12549]
[1723557104670,640.2697267,147.55,147.53,20.0]
[1723557104969,640.2697267,147.55,147.54,45.50196]
[1723557105146,632.47054828,147.55,147.54,65.50196]
[1723557105648,617.79054828,147.55,147.54,85.50196]
[1723557105858,617.79054828,147.55,147.54,124.10196]
[1723557106251,613.75054828,147.55,147.54,124.10196]
[1723557106580,544.21379054,147.55,147.54,133.10257578]
[1723557106740,299.05711483,147.55,147.54,133.10257578]
[1723557106941,299.05711483,147.55,147.54,94.50257578]
[1723557107164,299.05711483,147.55,147.54,85.50196]
[1723557107769,279.54511483,147.55,147.54,85.50196]
[1723557107975,279.54511483,147.55,147.54,94.50257578]
[1723557108265,259.20533864,147.55,147.54,29.00061578]
[1723557108467,238.88533864,147.55,147.54,40.0]
[1723557108786,238.88533864,147.55,147.54,20.0]
[1723557109439,238.88533864,147.55,147.54,20.12549]
[1723557109642,238.88533864,147.55,147.54,45.50196]
[1723557109860,238.88533864,147.55,147.54,20.0]
[1723557110372,238.88533864,147.55,147.54,40.0]
[1723557110962,238.88533864,147.55,147.54,20.0]
[1723557111156,238.88533864,147.55,147.54,65.50196]
[1723557111358,226.94533864,147.55,147.54,85.50196]
[1723557111561,212.38533864,147.55,147.54,114.50257578]
[1723557111868,192.04533864,147.55,147.54,74.50257578]
[1723557112131,192.04533864,147.55,147.54,68.21926718]
[1723557113242,192.04533864,147.55,147.54,108.21926718]
[1723557113471,189.34533864,147.55,147.54,68.21926718]
[1723557113678,189.34533864,147.55,147.54,108.21926718]
[1723557113878,169.0028032,147.55,147.54,117.21988296]
[1723557114177,148.6628032,147.55,147.54,117.21988296]
[1723557114379,128.4378032,147.55,147.54,155.81988296]
[1723557114544,122.5358032,147.55,147.54,155.81988296]
[1723557114749,107.63878657,147.55,147.54,155.81988296]
[1723557114947,104.33687087,147.55,147.54,155.81988296]
[1723557115481,83.99433543,147.55,147.54,155.81988296]
[1723557115778,42.89233543,147.55,147.54,155.81988296]
[1723557115983,33.07233543,147.55,147.54,155.81988296]
[1723557116188,20.36233543,147.55,147.54,155.81988296]
[1723557116687,0.01979999,147.55,147.54,155.81988296]
[1723557117290,0.01979999,147.55,147.54,90.44341296]
[1723557117476,0.01979999,147.55,147.54,110.31792296]
[1723557118174,32.1925,147.63,147.57,20.0]
[1723557118376,32.1925,147.63,147.58,20.0]
[1723557118578,32.1925,147.63,147.59,0.12549]
[1723557118783,32.1925,147.63,147.59,0.50196]
[1723557120583,32.1925,147.63,147.58,20.0]
[1723557120789,32.1925,147.63,147.57,2.69045185]
[1723557120964,32.1925,147.63,147.55,20.0]
[1723557121388,32.1925,147.63,147.57,20.0]
[1723557121768,22.488369,147.63,147.6,0.12549]
[1723557121966,12.761,147.65,147.63,0.12549]
[1723557122174,0.8414149,147.69,147.63,0.50196]
[1723557122468,59.4414149,147.84,147.64,20.0]
[1723557122469,8.45866335,147.81,147.64,20.0]
[1723557122666,38.6,147.79,147.65,40.50196]
[1723557122887,38.6,147.79,147.67,0.12549]
[1723557123096,38.6,147.79,147.67,40.50196]
[1723557123261,1.69236671,147.78,147.69,0.12549]
[1723557123476,39.4414149,147.84,147.69,20.37647]
[1723557123477,8.45677555,147.83,147.69,20.37647]
[1723557123702,40.29219748,147.83,147.71,0.12549]
[1723557124001,38.6,147.83,147.71,0.37647]
[1723557124179,38.6,147.83,147.73,0.12549]
[1723557124386,0.8414149,147.84,147.73,65.50196]
[1723557124690,31.7282,147.83,147.75,0.12549]
[1723557124887,31.7282,147.83,147.75,45.50196]
[1723557125276,12.8811,147.82,147.77,0.12549]
[1723557125525,12.8811,147.82,147.77,45.50196]
[1723557127680,0.8414149,147.84,147.77,45.50196]
[1723557127681,0.8414149,147.84,147.79,0.12549]
[1723557128016,0.8414149,147.84,147.79,45.50196]
[1723557128321,0.8414149,147.84,147.81,0.12549]
[1723557128609,0.8414149,147.84,147.81,0.50196]
[1723557128785,0.8414149,147.84,147.81,45.50196]
[1723557129300,0.8414149,147.84,147.81,0.50196]
[1723557129803,0.8414149,147.84,147.75,20.0]
[1723557130002,38.6,147.83,147.72,20.0]
[1723557130212,38.6,147.81,147.69,20.0]
[1723557130378,14.79304607,147.8,147.69,20.0]
[1723557130579,13.1009,147.8,147.69,20.0]
[1723557130799,13.1009,147.8,147.71,40.0]
[1723557131006,13.1009,147.8,147.71,20.0]
[1723557131992,13.1009,147.8,147.72,30.0]
[1723557132302,13.1009,147.8,147.73,45.12549]
[1723557132504,13.1009,147.8,147.73,65.12549]
[1723557132706,13.1009,147.8,147.75,20.0]
[1723557133011,30.7132,147.82,147.76,45.50196]
[1723557135718,32.40493893,147.82,147.76,0.37647]
[1723557135921,30.7132,147.82,147.76,30.37647]
[1723557136625,30.7132,147.82,147.76,0.37647]
[1723557137322,30.7132,147.82,147.77,0.12549]
[1723557137688,30.7132,147.82,147.77,20.12549]
[1723557137893,30.7132,147.82,147.78,45.37647]
[1723557138109,30.7132,147.82,147.79,0.12549]
[1723557138300,30.7132,147.82,147.8,0.12549]
[1723557138600,32.40471487,147.82,147.78,0.12549]
[1723557138804,69.0698,147.8,147.65,20.0]
[1723557139118,30.4698,147.75,147.7,30.0]
[1723557139329,30.4698,147.75,147.6,112.48777264]
[1723557139330,38.6,147.71,147.6,81.91987264]
[1723557139509,38.6,147.71,147.51,21.17897611]
[1723557139510,43.6071,147.67,147.61,7.07858084]
[1723557139824,43.6071,147.67,147.57,20.0]
[1723557140004,43.6071,147.67,147.57,27.07937461]
[1723557140201,43.6071,147.67,147.57,47.07937461]
[1723557140402,43.6071,147.67,147.6,20.0]
[1723557140604,38.6,147.77,147.62,20.0]
[1723557140605,43.6071,147.73,147.62,20.0]
[1723557140911,43.6071,147.73,147.64,58.6]
[1723557141096,43.6071,147.73,147.67,20.0]
[1723557141299,43.6071,147.73,147.63,40.0]
[1723557141613,43.6071,147.73,147.65,20.0]
[1723557141800,43.6071,147.73,147.66,65.50196]
[1723557141995,43.6071,147.73,147.67,20.0]
[1723557142197,43.6071,147.73,147.68,45.50196]
[1723557142415,1000.0,147.76,147.7,0.12549]
[1723557142713,1000.0,147.76,147.7,65.50196]
[1723557142919,1000.0,147.76,147.72,20.12549]
[1723557143221,38.6,147.74,147.58,20.0]
[1723557143421,38.6,147.74,147.61,20.0]
[1723557144108,46.27,147.73,147.61,20.0]
[1723557144796,46.38885619,147.72,147.57,7.07937461]
[1723557144994,6.7714,147.68,147.57,7.07937461]
[1723557145190,47.96376704,147.67,147.57,7.07937461]
[1723557145393,46.27,147.67,147.57,7.07937461]
[1723557145822,1.6936757,147.66,147.57,7.07937461]
[1723557146705,1.6936757,147.66,147.58,20.0]
[1723557146892,46.27,147.7,147.58,20.0]
[1723557147096,44.6959,147.72,147.59,40.0]
[1723557147293,44.6959,147.72,147.61,20.0]
[1723557147517,44.6959,147.72,147.62,65.0]
[1723557147927,44.6959,147.72,147.63,0.50196]
[1723557148304,1.69310148,147.71,147.63,0.50196]
[1723557148844,1.6930986,147.7,147.63,0.50196]
[1723557149119,1.6930986,147.7,147.62,20.0]
[1723557149120,47.9630986,147.7,147.62,20.0]
[1723557149321,47.9630986,147.7,147.58,20.0]
[1723557149725,46.27,147.7,147.61,20.0]
[1723557149939,46.27,147.7,147.59,20.0]
[1723557150115,47.96322647,147.7,147.6,40.0]
[1723557150424,47.96322647,147.7,147.61,45.37647]
[1723557150634,54.73402647,147.7,147.63,0.12549]
[1723557150928,47.96322647,147.7,147.63,0.25098]
[1723557152007,47.96322647,147.7,147.64,0.12549]
[1723557152307,47.96322647,147.7,147.64,0.25098]
[1723557152517,47.96322647,147.7,147.64,0.37647]
[1723557152901,47.96322647,147.7,147.64,0.25098]
[1723557155803,47.96322647,147.7,147.65,0.25098]
[1723557156004,47.96322647,147.7,147.66,0.25098]
[1723557156528,47.96322647,147.7,147.54,1.18001002]
[1723557156529,53.042,147.67,147.54,1.18001002]
[1723557156726,53.042,147.67,147.55,30.0]
[1723557156727,1.69390354,147.66,147.55,30.0]
[1723557156915,12.2159,147.63,147.55,30.0]
[1723557157113,12.2159,147.63,147.54,1.18001002]
[1723557157114,1.69425197,147.62,147.54,1.18001002]
[1723557157315,46.27,147.61,147.53,7.08064294]
[1723557157546,1.69449125,147.6,147.5,1.18070514]
[1723557157728,1.69449125,147.6,147.5,8.26360918]
[1723557157908,46.27,147.61,147.5,8.26360918]
[1723557158110,13.91021256,147.63,147.5,8.26360918]
[1723557158604,13.91021256,147.63,147.51,20.0]
[1723557158824,46.27,147.61,147.5,8.26360918]
[1723557159032,1.69469473,147.6,147.5,1.18070514]
[1723557159513,46.27,147.61,147.5,1.18070514]
[1723557159706,1.69435229,147.62,147.5,1.18070514]
[1723557160409,1.69435229,147.62,147.51,0.25098]
[1723557160606,13.91026261,147.63,147.53,0.12549]
[1723557160828,13.91019351,147.63,147.53,0.25098]
[1723557161000,13.91019351,147.63,147.55,0.12549]
[1723557161207,13.91019351,147.63,147.55,0.25098]
[1723557161409,13.91019351,147.63,147.51,20.0]
[1723557161635,13.91019351,147.63,147.5,21.18070514]
[1723557162715,13.91019351,147.63,147.51,0.25098]
[1723557162929,20.68389351,147.63,147.52,0.25098]
[1723557163234,1.69459262,147.62,147.52,20.12549]
[1723557163438,13.91028829,147.63,147.53,45.0]
[1723557163620,13.91028829,147.63,147.54,20.12549]
[1723557163937,50.8259,147.63,147.54,20.12549]
[1723557164145,52.52016039,147.63,147.54,20.12549]
[1723557164444,52.52016039,147.63,147.55,0.37647]
[1723557164620,52.52016039,147.63,147.56,0.25098]
[1723557164822,52.52016039,147.63,147.57,0.37647]
[1723557165027,52.52016039,147.63,147.57,0.25098]
[1723557165217,52.52016039,147.63,147.58,0.25098]
[1723557165218,50.8259,147.63,147.58,0.25098]
[1723557165619,1.6941768,147.62,147.58,0.12549]
[1723557165934,1.6941768,147.62,147.57,0.37647]
[1723557166315,1.6941768,147.62,147.54,20.0]
[1723557166514,50.8259,147.63,147.51,20.0]
[1723557166743,1.69427879,147.62,147.51,20.0]
[1723557167626,38.61,147.6,147.5,21.18070514]
[1723557167816,1.69461441,147.59,147.5,21.18070514]
[1723557168717,1.69461441,147.59,147.51,0.37647]
[1723557169211,1.69461441,147.59,147.51,45.37647]
[1723557169413,1.69461441,147.59,147.53,0.12549]
[1723557169745,38.61,147.6,147.53,0.37647]
[1723557169746,1.69447491,147.58,147.53,0.37647]
[1723557169920,1.69458025,147.57,147.54,0.12549]
[1723557170250,40.30464556,147.6,147.54,0.12549]
[1723557170612,30.1612,147.59,147.5,8.26372079]
[1723557170826,1.69485298,147.58,147.5,8.26372079]
[1723557171027,1.69481001,147.57,147.5,1.18070514]
[1723557172347,31.85573798,147.59,147.5,1.18070514]
[1723557172720,31.85573798,147.59,147.51,0.12549]
[1723557172919,31.85573798,147.59,147.51,0.50196]
[1723557173137,30.1612,147.59,147.51,0.50196]
[1723557173340,42.7884,147.63,147.53,0.12549]
[1723557173654,42.7884,147.63,147.53,85.50196]
[1723557173821,42.7884,147.63,147.55,0.12549]
[1723557174020,42.7884,147.63,147.55,65.50196]
[1723557174719,42.7884,147.63,147.57,0.12549]
[1723557174919,42.7884,147.63,147.57,65.50196]
[1723557176239,1.6938072,147.62,147.57,65.50196]
[1723557176544,42.7884,147.63,147.57,65.50196]
[1723557178017,1.69380762,147.62,147.57,65.50196]
[1723557178237,42.7884,147.63,147.57,20.0]
[1723557178442,1.69386578,147.62,147.56,2.6489671]
[1723557178643,1.69386578,147.62,147.53,1.18024864]
[1723557180836,1.69386578,147.62,147.53,21.18024864]
[1723557181054,1.69386578,147.62,147.54,20.0]
[1723557181751,42.7884,147.63,147.55,0.25098]
[1723557181951,42.7884,147.63,147.56,0.12549]
[1723557182255,42.7884,147.63,147.57,0.12549]
[1723557182446,42.7884,147.63,147.57,45.37647]
[1723557182641,42.7884,147.63,147.58,0.12549]
[1723557182825,42.7884,147.63,147.59,0.12549]
[1723557183023,45.459,147.69,147.59,0.37647]
[1723557183228,45.459,147.69,147.6,0.12549]
[1723557183434,45.459,147.69,147.61,0.12549]
[1723557183644,45.459,147.69,147.61,0.37647]
[1723557184028,45.459,147.69,147.62,0.12549]
[1723557184225,45.459,147.69,147.63,0.12549]
[1723557184430,45.459,147.69,147.63,0.37647]
[1723557184630,47.15232698,147.69,147.64,0.12549]
[1723557184841,45.459,147.69,147.64,0.25098]
[1723557185048,45.459,147.69,147.64,0.12549]
[1723557185223,45.459,147.69,147.65,0.12549]
[1723557185428,45.459,147.69,147.65,0.37647]
[1723557185733,47.1524149,147.69,147.65,0.37647]
[1723557186033,47.1524149,147.69,147.66,0.12549]
[1723557186034,45.459,147.69,147.66,0.12549]
[1723557186231,45.459,147.69,147.66,0.25098]
[1723557187422,45.459,147.69,147.6,20.0]
[1723557187423,40.30330305,147.68,147.6,20.0]
[1723557187628,1.69374704,147.67,147.55,64.923]
[1723557187929,1.69374704,147.67,147.56,30.0]
[1723557188123,1.69374704,147.67,147.55,22.71250305]
[1723557188342,38.61,147.67,147.55,2.71250305]
[1723557188552,1.69370055,147.66,147.54,20.0]
[1723557188758,38.61,147.64,147.51,12.616]
[1723557188925,1.69428858,147.63,147.51,12.616]
[1723557189127,12.142,147.62,147.51,12.616]
[1723557189356,30.9586,147.6,147.49,6.783]
[1723557189521,1.69449918,147.59,147.49,6.783]
[1723557189727,30.9586,147.6,147.49,26.783]
[1723557189952,32.65304527,147.6,147.49,6.783]
[1723557190151,32.65304527,147.6,147.49,9.53103564]
[1723557190454,32.65311543,147.6,147.49,49.53103564]
[1723557190660,32.65311543,147.6,147.49,29.53103564]
[1723557190853,32.65311543,147.6,147.49,68.14103564]
[1723557191149,1.69433521,147.59,147.49,68.14103564]
[1723557191459,1.69433521,147.59,147.5,20.0]
[1723557191951,30.9586,147.6,147.5,20.0]
[1723557192251,30.9586,147.6,147.51,20.0]
[1723557192440,30.9586,147.6,147.52,20.0]
[1723557192835,1.69461866,147.59,147.51,1.18065106]
[1723557193039,8.47021866,147.59,147.46,6.783]
[1723557193334,1.69461866,147.59,147.47,1.18093803]
[1723557194036,69.5686,147.6,147.48,6.783]
[1723557194240,30.9586,147.6,147.5,0.12549]
[1723557194544,30.9586,147.6,147.5,0.25098]
[1723557194752,30.9586,147.6,147.51,0.12549]
[1723557194950,30.9586,147.6,147.52,20.12549]
[1723557195138,30.9586,147.6,147.54,0.12549]
[1723557195339,30.9586,147.6,147.54,45.25098]
[1723557195630,30.9586,147.6,147.55,0.12549]
[1723557195836,30.9586,147.6,147.56,0.12549]
[1723557196156,1.69413662,147.59,147.56,0.37647]
[1723557196364,1.69413662,147.59,147.57,0.12549]
[1723557196652,30.9586,147.6,147.58,0.12549]
[1723557196858,30.9586,147.6,147.58,0.25098]
[1723557197035,30.9586,147.6,147.57,0.12549]
[1723557197036,1.6941229,147.59,147.57,0.12549]
[1723557197359,30.9586,147.6,147.57,0.12549]
[1723557198838,12.142,147.62,147.59,0.12549]
[1723557199242,31.3001,147.64,147.58,0.37647]
[1723557199447,12.9463,147.66,147.59,0.12549]
[1723557201454,12.9463,147.66,147.6,0.12549]
[1723557201668,12.9463,147.66,147.6,65.37647]
[1723557201957,30.6245,147.69,147.61,20.12549]
[1723557202130,30.6245,147.69,147.62,103.98647]
[1723557202325,30.6245,147.69,147.62,65.37647]
[1723557202544,30.6245,147.69,147.63,0.12549]
[1723557202727,563.1059,147.7,147.63,0.12549]
[1723557203341,563.1059,147.7,147.62,20.12549]
[1723557203543,563.1059,147.7,147.62,0.12549]
[1723557203855,30.4498,147.65,147.51,38.81998174]
[1723557204152,30.4498,147.65,147.54,20.0]
[1723557204354,30.4498,147.65,147.55,9.558325]
[1723557204863,30.4498,147.65,147.56,20.0]
[1723557205063,601.7159,147.7,147.59,20.0]
[1723557205064,32.9945,147.69,147.59,20.0]
[1723557205238,32.9945,147.69,147.6,20.0]
[1723557205632,32.9945,147.69,147.61,0.25098]
[1723557205862,32.9945,147.69,147.62,0.25098]
[1723557206073,32.9945,147.69,147.63,0.25098]
[1723557206375,1.6930518,147.69,147.64,0.37647]
[1723557206667,563.1059,147.7,147.65,0.25098]
[1723557206876,563.1059,147.7,147.67,0.12549]
[1723557207041,563.1059,147.7,147.67,0.25098]
[1723557207242,563.1059,147.7,147.68,0.12549]
[1723557207644,563.1059,147.7,147.69,0.12549]
[1723557207839,563.1059,147.7,147.69,0.37647]
[1723557208347,563.1059,147.7,147.69,0.50196]
[1723557208649,563.1059,147.7,147.64,45.0]
[1723557209059,563.1059,147.7,147.61,2.67463655]
[1723557209274,563.1059,147.7,147.61,22.67463655]
[1723557209452,563.1059,147.7,147.61,20.0]
[1723557210052,563.1059,147.7,147.62,20.0]
[1723557210381,563.1059,147.7,147.63,45.0]
[1723557210579,563.1059,147.7,147.65,0.12549]
[1723557210753,563.1059,147.7,147.65,45.50196]
[1723557211844,563.1059,147.7,147.65,0.37647]
[1723557212149,563.1059,147.7,147.6,2.69614144]
[1723557212150,1.69321353,147.69,147.6,2.69614144]
[1723557212352,601.7159,147.7,147.58,32.2702]
[1723557212560,550.8,147.6,147.58,52.2702]
[1723557213165,533.31,147.6,147.59,20.0]
[1723557213359,533.31,147.6,147.59,50.0]
[1723557213579,512.97849706,147.6,147.59,70.0]
[1723557213765,512.97849706,147.6,147.59,50.0]
[1723557214269,512.97849706,147.6,147.59,20.0]
[1723557214478,476.63397754,147.6,147.59,40.0]
[1723557214653,449.35719195,147.6,147.59,101.2994512]
[1723557214851,447.55379195,147.6,147.59,101.2994512]
[1723557215247,447.55379195,147.6,147.59,101.5504312]
[1723557215463,439.40779195,147.6,147.59,153.5844112]
[1723557215674,207.83479195,147.6,147.59,153.5844112]
[1723557215881,187.50256604,147.6,147.59,153.5844112]
[1723557216252,128.81400901,147.6,147.59,153.5844112]
[1723557216581,31.7619,147.73,147.66,20.12549]
[1723557216761,31.7619,147.73,147.68,0.12549]
[1723557216960,31.7619,147.73,147.68,0.25098]
[1723557217229,31.7619,147.73,147.69,0.12549]
[1723557217376,31.7619,147.73,147.7,0.12549]
[1723557217765,31.7619,147.73,147.7,0.25098]
[1723557217968,1.692438,147.72,147.71,0.25098]
[1723557218150,1.692438,147.72,147.7,0.12549]
[1723557218358,1.69286185,147.71,147.65,20.0]
[1723557218564,1.69285293,147.7,147.66,45.0]
[1723557218878,1.69284172,147.69,147.6,50.0]
[1723557219182,70.3719,147.73,147.59,65.393]
[1723557219183,1.69312429,147.68,147.61,6.783]
[1723557219358,70.3719,147.73,147.61,46.783]
[1723557219710,31.7619,147.73,147.63,78.61]
[1723557220198,31.7619,147.73,147.66,6.783]
[1723557220393,31.7619,147.73,147.67,72.28496]
[1723557221009,31.7619,147.73,147.67,85.50196]
[1723557221176,31.7619,147.73,147.71,0.12549]
[1723557221376,1000.0,147.76,147.71,45.50196]
[1723557222093,1000.0,147.76,147.71,0.50196]
[1723557223206,1000.0,147.76,147.71,20.50196]
[1723557223407,1000.0,147.76,147.73,0.12549]
[1723557223703,1000.0,147.76,147.73,0.37647]
[1723557223885,1000.0,147.76,147.73,0.50196]
[1723557224981,1000.0,147.76,147.75,0.12549]
[1723557225390,1000.0,147.76,147.7,20.0]
[1723557225590,1000.0,147.76,147.72,20.0]
[1723557225801,1000.0,147.76,147.73,20.0]
[1723557226208,1000.0,147.76,147.7,40.0]
[1723557226209,1000.0,147.76,147.71,20.0]
[1723557226707,1000.0,147.76,147.72,0.25098]
[1723557226907,1.6921159,147.75,147.73,0.12549]
[1723557227104,1.6921159,147.75,147.72,0.37647]
[1723557227105,1000.0,147.76,147.68,20.0]
[1723557228690,45.9981,147.75,147.68,20.0]
[1723557228914,47.69069983,147.75,147.67,26.783]
[1723557229223,47.69069983,147.75,147.66,6.783]
[1723557229531,45.9981,147.75,147.66,6.783]
[1723557229809,1.69274802,147.74,147.66,6.783]
[1723557230010,45.9981,147.75,147.66,6.783]
[1723557230215,45.9981,147.75,147.65,6.783]
[1723557230584,45.9981,147.75,147.65,38.61]
[1723557231197,32.5896,147.74,147.64,2.75166425]
[1723557231399,1.69292164,147.73,147.62,20.0]
[1723557231714,1.69292164,147.73,147.64,20.0]
[1723557231904,32.5896,147.74,147.65,20.0]
[1723557232729,32.5896,147.74,147.66,65.50196]
[1723557234601,32.5896,147.74,147.69,0.12549]
[1723557235118,32.5896,147.74,147.69,65.50196]
[1723557235306,1000.0,147.76,147.71,0.12549]
[1723557235491,1000.0,147.76,147.71,65.37647]
[1723557235690,1000.0,147.76,147.71,65.50196]
[1723557237219,1000.0,147.76,147.71,45.50196]
[1723557237414,1.69243141,147.75,147.65,20.0]
[1723557238019,1038.61,147.76,147.65,20.0]
[1723557238811,1.69247035,147.75,147.66,20.0]
[1723557239010,1.69247035,147.75,147.65,20.0]
[1723557239205,1038.61,147.76,147.65,40.0]
[1723557239726,1038.61,147.76,147.65,20.0]
[1723557240020,1038.61,147.76,147.67,20.0]
[1723557240328,1038.61,147.76,147.68,45.37647]
[1723557240624,1038.61,147.76,147.69,0.12549]
[1723557240832,1000.0,147.76,147.69,0.12549]
[1723557241129,1000.0,147.76,147.65,22.69449596]
[1723557241303,1000.0,147.76,147.65,42.69449596]
[1723557241503,1000.0,147.76,147.66,20.0]
[1723557242323,1000.0,147.76,147.68,20.0]
[1723557242526,1000.0,147.76,147.69,45.50196]
[1723557243028,1000.0,147.76,147.71,0.12549]
[1723557243330,1000.0,147.76,147.71,45.50196]
[1723557243704,1000.0,147.76,147.71,65.50196]
[1723557244129,1000.0,147.76,147.73,0.12549]
[1723557244327,1000.0,147.76,147.73,45.50196]
[1723557245935,1000.0,147.76,147.73,0.50196]
[1723557246427,969.85439559,147.76,147.75,0.12549]
[1723557246726,954.90918069,147.76,147.75,65.50196]
[1723557247528,954.90918069,147.76,147.75,20.25098]
[1723557248952,954.90918069,147.76,147.75,45.50196]
[1723557249103,954.90918069,147.76,147.75,65.50196]
[1723557250206,954.90918069,147.76,147.75,85.50196]